bitfinex/quotes_ETHUSD_20250602
["timestamp","ask_amount","ask_price","bid_price","bid_amount"]
[1748877152821,0.02,2528.9,2528.8,26.37959236]
[1748877153026,0.02,2528.9,2528.8,26.00276612]
[1748877153257,0.02,2528.9,2528.8,26.37962016]
[1748877153942,0.02,2528.9,2528.8,30.13177471]
[1748877154326,0.02,2528.9,2528.8,30.32421632]
[1748877155337,0.02,2528.9,2528.8,26.57208844]
[1748877155631,0.02,2528.9,2528.8,34.32421632]
[1748877155838,0.02,2528.9,2528.8,30.57208844]
[1748877156163,0.02,2528.9,2528.8,34.32421632]
[1748877157934,0.02,2528.9,2528.8,34.32425034]
[1748877159577,0.02,2528.9,2528.8,30.57212246]
[1748877159929,0.02,2528.9,2528.8,29.41080873]
[1748877160132,0.02,2528.9,2528.8,33.57980873]
[1748877160557,0.02,2528.9,2528.8,34.12980873]
[1748877160863,0.02,2528.9,2528.8,34.32715918]
[1748877161965,0.02,2528.9,2528.8,33.95024445]
[1748877162169,0.02,2528.9,2528.8,34.32759183]
[1748877162736,0.02,2528.9,2528.8,38.07971971]
[1748877162959,0.02,2528.9,2528.8,34.32759183]
[1748877163141,0.02,2528.9,2528.8,38.07971971]
[1748877163449,0.02,2528.9,2528.8,34.32759183]
[1748877163646,0.02,2528.9,2528.8,25.27846395]
[1748877163978,0.02,2528.9,2528.8,29.60559183]
[1748877164184,0.02,2528.9,2528.8,33.77359183]
[1748877164364,0.02,2528.9,2528.8,28.48059183]
[1748877164567,0.02,2528.9,2528.8,33.77359183]
[1748877164736,0.02,2528.9,2528.8,34.32359183]
[1748877165043,0.02,2528.9,2528.8,30.15559183]
[1748877165250,0.02,2528.9,2528.8,34.32359183]
[1748877166135,0.02,2528.9,2528.8,34.3241043]
[1748877167274,0.02,2528.9,2528.8,30.12675385]
[1748877168037,0.02,2528.9,2528.8,24.83375385]
[1748877168240,0.02,2528.9,2528.8,30.12675385]
[1748877168439,0.02,2528.9,2528.8,25.59592597]
[1748877169202,0.02,2528.9,2528.8,33.59592597]
[1748877171840,0.02,2528.9,2528.8,28.84592597]
[1748877172468,0.02,2528.9,2528.8,12.86730464]
[1748877172739,0.8491,2528.9,2528.8,13.61444479]
[1748877173185,0.8491,2528.9,2528.8,21.61444479]
[1748877173490,0.8491,2528.9,2528.8,21.99251624]
[1748877173841,0.8491,2528.9,2528.8,21.99238751]
[1748877174054,0.8491,2528.9,2528.8,24.96229132]
[1748877174262,0.02,2528.9,2528.8,24.96229132]
[1748877180401,0.02,2528.9,2528.8,23.83729132]
[1748877180607,0.7722,2528.9,2528.8,29.13029132]
[1748877180753,0.7722,2528.9,2528.8,24.96329132]
[1748877180949,0.02,2528.9,2528.8,23.83729132]
[1748877181155,0.02,2528.9,2528.8,29.13029132]
[1748877181454,0.02,2528.9,2528.8,29.13028502]
[1748877181651,0.02,2528.9,2528.8,29.68028502]
[1748877182667,0.02,2528.9,2528.8,23.83728502]
[1748877182876,0.8339,2528.9,2528.8,29.12928502]
[1748877183402,0.02,2528.9,2528.8,29.12928502]
[1748877183575,0.02,2528.9,2528.8,29.67928502]
[1748877184012,0.02,2528.9,2528.8,35.24108502]
[1748877184163,0.02,2528.9,2528.8,38.9932129]
[1748877185376,0.8446,2529.9,2529.8,3.95288165]
[1748877185572,0.8446,2529.9,2529.8,17.62278295]
[1748877187374,0.02,2529.9,2529.8,24.45770267]
[1748877189062,0.02,2529.9,2529.8,29.59455133]
[1748877189282,0.02,2529.9,2529.8,30.41535133]
[1748877191446,0.02,2529.9,2529.8,25.66535133]
[1748877193063,0.02,2529.9,2529.8,25.66476438]
[1748877195832,0.02,2529.9,2529.8,25.86233861]
[1748877196336,0.02,2529.9,2529.8,29.86233861]
[1748877197034,0.02,2529.9,2529.8,29.66126633]
[1748877197401,0.02,2529.9,2529.8,29.85903678]
[1748877197601,0.02,2529.9,2529.8,25.85903678]
[1748877198306,0.02,2529.9,2529.8,25.66126633]
[1748877198821,0.02,2529.9,2529.8,29.41339421]
[1748877199009,0.803,2530.9,2530.8,3.95131974]
[1748877199323,0.803,2530.9,2530.8,18.02659591]
[1748877200110,0.02,2530.9,2530.8,18.02659591]
[1748877200395,0.02,2530.9,2530.8,21.77872379]
[1748877201333,0.02,2530.9,2530.8,22.32872379]
[1748877201552,0.02,2530.9,2530.8,22.70475594]
[1748877202314,0.02,2530.9,2530.8,23.48125594]
[1748877203300,0.02,2530.9,2530.8,27.48125594]
[1748877207441,0.02,2530.9,2530.8,32.23125594]
[1748877208345,0.02,2530.9,2530.8,31.85522379]
[1748877208547,0.02,2530.9,2530.8,32.23050733]
[1748877208737,0.02,2530.9,2530.8,26.94550733]
[1748877208945,0.02,2530.9,2530.8,32.22650733]
[1748877211540,0.02,2530.9,2530.8,32.55635663]
[1748877212216,0.02,2530.9,2530.8,32.55666918]
[1748877212414,0.02,2530.9,2530.8,36.30879706]
[1748877212617,0.8269,2531.9,2531.8,3.94975906]
[1748877212866,0.8269,2531.9,2531.8,17.62473497]
[1748877213841,0.02,2531.9,2531.8,17.62473497]
[1748877214161,0.02,2531.9,2531.8,18.17473497]
[1748877214365,0.02,2531.9,2531.8,18.55063619]
[1748877215243,0.02,2531.9,2531.8,23.30063619]
[1748877215649,0.02,2531.9,2531.8,24.07243619]
[1748877216160,0.02,2531.9,2531.8,23.30067052]
[1748877217543,0.7985,2532.9,2532.1,0.55]
[1748877217744,0.02,2532.9,2532.8,16.2503275]
[1748877217944,0.02,2532.9,2532.8,25.14922101]
[1748877218161,0.02,2532.9,2532.8,23.92512984]
[1748877219249,0.02,2532.9,2532.8,20.17300196]
[1748877219723,0.02,2532.9,2532.8,19.79706641]
[1748877219925,0.02,2532.9,2532.8,20.17209878]
[1748877221168,0.02,2532.9,2532.8,20.93749878]
[1748877222229,0.8244,2533.7,2533.6,4.49695295]
[1748877222554,0.02,2533.9,2533.8,11.9466414]
[1748877222555,0.8281,2533.9,2533.8,11.9466414]
[1748877223262,0.02,2533.9,2533.8,21.8170414]
[1748877223465,0.8097,2534.9,2534.8,3.94508442]
[1748877223682,0.8097,2534.9,2534.8,17.22008442]
[1748877223683,0.02,2534.9,2534.8,17.22008442]
[1748877223974,0.02,2534.9,2534.8,20.09784785]
[1748877224153,0.02,2534.9,2534.8,20.64784785]
[1748877224724,0.02,2534.9,2534.8,15.37284785]
[1748877224929,0.02,2534.9,2534.8,20.64584785]
[1748877226583,0.02,2534.9,2534.8,16.49184785]
[1748877226749,0.02,2534.9,2534.8,20.64484785]
[1748877227441,0.02,2534.9,2534.8,11.94508442]
[1748877227630,0.02,2534.9,2534.8,5.06308442]
[1748877227835,0.02,2534.9,2534.8,9.21608442]
[1748877228141,0.02,2534.9,2534.8,17.76608442]
[1748877231130,0.8047,2535.9,2535.8,3.94352866]
[1748877231395,0.02,2535.9,2535.8,25.76920885]
[1748877231829,0.02,2535.9,2535.8,13.45588153]
[1748877232031,0.02,2535.9,2535.8,13.06152866]
[1748877233039,0.02,2535.9,2535.8,17.21152866]
[1748877233239,0.02,2535.9,2535.8,19.55585598]
[1748877233438,0.02,2535.9,2535.8,25.37385598]
[1748877233756,0.02,2535.9,2535.8,34.06245014]
[1748877233953,0.6667,2536.3,2536.2,4.49290671]
[1748877234135,0.6667,2536.3,2536.2,21.11545588]
[1748877234492,0.6667,2536.3,2536.2,26.38345588]
[1748877234671,0.6667,2536.3,2536.2,13.31160671]
[1748877234991,0.6667,2536.3,2536.2,20.30507104]
[1748877235357,0.6667,2536.3,2536.2,20.30407104]
[1748877235840,0.6667,2536.3,2536.2,15.33537104]
[1748877236039,0.6667,2536.3,2536.2,19.48437104]
[1748877236289,0.6667,2536.3,2536.2,19.87139686]
[1748877236486,0.6667,2536.3,2536.2,20.68369686]
[1748877237384,0.00614,2536.9,2536.2,20.68369686]
[1748877237385,0.00614,2536.9,2536.8,12.49197414]
[1748877237586,0.00614,2536.9,2536.8,14.13538203]
[1748877238358,0.00614,2536.9,2536.8,14.93968203]
[1748877239450,0.00614,2536.9,2536.8,19.40438203]
[1748877239846,0.00614,2536.9,2536.8,14.13538203]
[1748877240065,0.00614,2536.9,2536.8,13.58538203]
[1748877240289,0.00614,2536.9,2536.8,18.85538203]
[1748877240790,0.00614,2536.9,2536.8,19.40538203]
[1748877241375,0.00614,2536.9,2536.8,18.85538203]
[1748877241578,0.00614,2536.9,2536.8,14.70238203]
[1748877241752,0.00614,2536.9,2536.8,19.40338203]
[1748877241947,0.00614,2536.9,2536.8,13.05897414]
[1748877242157,0.00614,2536.9,2536.8,9.20897414]
[1748877242363,0.00614,2536.9,2536.8,17.20897414]
[1748877242594,0.00614,2536.9,2536.8,17.20997414]
[1748877242761,0.00614,2536.9,2536.8,17.20897414]
[1748877243170,0.00614,2536.9,2536.8,19.01423704]
[1748877243374,0.00614,2536.9,2536.8,19.56423704]
[1748877244273,0.00614,2536.9,2536.8,14.29723704]
[1748877244474,0.77444,2536.9,2536.8,13.05897414]
[1748877244665,0.77444,2536.9,2536.8,5.05897414]
[1748877245057,0.77444,2536.9,2535.9,0.40191006]
[1748877245306,0.7683,2536.7,2536.5,3.94243004]
[1748877245521,0.7683,2536.7,2536.6,3.94228494]
[1748877245944,0.7683,2536.7,2536.0,9.22321613]
[1748877245945,0.7683,2536.7,2536.0,5.06007768]
[1748877246083,0.7683,2536.7,2536.4,3.9424898]
[1748877246282,0.7683,2536.7,2536.5,3.94243024]
[1748877246498,0.7683,2536.7,2536.6,3.94228494]
[1748877246697,0.7683,2536.7,2536.4,3.94252333]
[1748877246934,0.7683,2536.7,2536.3,3.9427374]
[1748877246935,0.8365798,2536.6,2536.3,1.117]
[1748877247238,0.7873,2536.4,2536.3,1.117]
[1748877247402,0.83658567,2536.4,2536.3,1.117]
[1748877247602,0.7873,2536.4,2536.3,5.05975125]
[1748877247832,0.7873,2536.4,2536.3,1.117]
[1748877248036,0.7873,2536.4,2536.3,5.05975125]
[1748877248333,0.7873,2536.4,2536.3,12.84301443]
[1748877248553,0.7873,2536.4,2536.3,11.94275125]
[1748877248701,0.7873,2536.4,2536.3,1.117]
[1748877248904,0.7873,2536.4,2536.3,5.05975125]
[1748877250600,0.7873,2536.4,2536.3,1.117]
[1748877251380,0.7873,2536.4,2536.3,5.05975125]
[1748877251587,0.2883,2536.4,2536.3,5.05975125]
[1748877251838,0.2883,2536.4,2536.3,1.117]
[1748877252198,0.2883,2536.4,2536.3,5.05975125]
[1748877252416,8.13337618,2536.5,2536.0,1.117]
[1748877252718,4.70523759,2536.4,2536.0,9.117]
[1748877252922,0.86262605,2536.4,2536.0,1.117]
[1748877253148,3.94344698,2535.9,2535.0,8.513]
[1748877253426,0.04929894,2535.8,2535.4,5.0610716]
[1748877253725,0.81333762,2536.4,2535.7,3.94366337]
[1748877254030,4.83752637,2536.3,2535.8,3.94349799]
[1748877254193,3.94313455,2536.1,2535.6,3.94369867]
[1748877254525,0.04929564,2536.0,2535.5,3.94394992]
[1748877254732,0.7977,2536.0,2535.6,3.94375841]
[1748877254930,0.04929682,2535.9,2535.6,3.94375841]
[1748877255129,0.7977,2535.8,2535.6,3.94378744]
[1748877255320,0.7977,2535.8,2535.4,1.117]
[1748877255640,0.7977,2535.8,2535.5,3.94392897]
[1748877255844,0.7977,2535.8,2535.6,3.94369239]
[1748877255991,0.814,2536.3,2536.2,3.94282485]
[1748877256186,0.814,2536.3,2536.2,5.07490671]
[1748877256708,0.814,2536.3,2536.2,1.132]
[1748877257114,0.814,2536.3,2536.2,5.07490671]
[1748877257285,0.814,2536.3,2536.2,1.132]
[1748877257486,0.7704,2536.2,2536.1,1.132]
[1748877257743,0.8196891,2536.2,2536.1,1.132]
[1748877257905,0.7704,2536.2,2536.1,5.07506218]
[1748877258726,0.7704,2536.2,2536.1,1.132]
[1748877258939,0.7704,2536.2,2534.9,4.70687984]
[1748877259138,0.7704,2536.2,2536.0,3.94314108]
[1748877259291,0.7704,2536.2,2536.1,3.94306218]
[1748877260247,0.7704,2536.2,2536.0,1.132]
[1748877260403,0.7704,2536.2,2536.1,3.94306218]
[1748877261136,0.7704,2536.2,2536.0,3.94311745]
[1748877261445,0.7704,2536.2,2536.1,1.132]
[1748877262144,0.7977,2536.1,2536.0,1.132]
[1748877262327,0.7977,2536.1,2536.0,5.07521766]
[1748877267576,0.7977,2536.1,2536.0,1.132]
[1748877267882,0.7977,2536.1,2536.0,5.07521766]
[1748877268181,0.7977,2536.1,2536.0,5.07621766]
[1748877269147,0.7592,2536.8,2536.2,3.94282425]
[1748877269348,0.7592,2536.8,2536.7,3.94212953]
[1748877269554,0.7592,2536.8,2536.7,5.07512953]
[1748877270572,0.7592,2536.8,2536.7,1.133]
[1748877270758,4.77457414,2536.8,2536.7,1.133]
[1748877270947,6.46509638,2536.8,2536.7,1.133]
[1748877271549,6.46509638,2536.8,2536.7,0.6373125]
[1748877271752,3.94244739,2536.5,2536.2,1.132]
[1748877271952,0.8166,2536.3,2536.2,1.132]
[1748877272575,4.71195125,2536.3,2536.2,1.132]
[1748877272774,4.71195125,2536.3,2535.8,9.132]
[1748877272775,3.94303436,2536.2,2535.8,9.132]
[1748877272953,0.85729391,2536.1,2535.8,1.132]
[1748877273287,0.808,2536.0,2535.8,1.132]
[1748877273478,0.85729693,2535.9,2535.8,1.132]
[1748877274052,4.80067009,2535.9,2535.8,1.132]
[1748877274248,0.7834,2535.6,2535.2,1.132]
[1748877274450,0.7834,2535.6,2535.5,3.94399526]
[1748877274889,0.7562,2536.2,2535.5,8.0]
[1748877275062,4.74842122,2536.2,2535.7,3.94360721]
[1748877275261,0.7562,2536.0,2535.6,3.94381854]
[1748877275462,0.04929724,2535.9,2535.5,16.10497465]
[1748877275669,0.04929724,2535.9,2535.7,3.9436772]
[1748877275985,0.04929724,2535.9,2535.6,3.94375493]
[1748877276293,0.7562,2536.0,2535.8,3.94352866]
[1748877276593,0.7562,2536.0,2535.9,3.94337316]
[1748877277575,0.7562,2536.0,2535.5,16.10494896]
[1748877277576,0.7562,2536.0,2535.8,3.94345225]
[1748877277753,0.7562,2536.0,2535.6,3.94383972]
[1748877277948,0.7562,2536.0,2535.6,8.0]
[1748877278190,0.7562,2536.0,2535.9,3.94337316]
[1748877278673,0.7562,2536.0,2535.9,5.07637316]
[1748877280079,0.7562,2536.0,2535.9,1.133]
[1748877280573,0.7562,2536.0,2535.9,3.94337316]
[1748877281717,0.7521,2536.5,2536.1,3.9429365]
[1748877282002,0.7521,2536.5,2536.2,3.94280059]
[1748877282190,0.04928661,2536.4,2536.1,3.94292309]
[1748877282501,0.04928661,2536.4,2536.0,3.94314248]
[1748877282703,0.7649,2536.3,2536.0,3.94314248]
[1748877282996,0.04928992,2536.2,2536.0,3.94314248]
[1748877283198,0.7649,2536.3,2536.0,3.94314248]
[1748877283499,0.04928993,2536.2,2535.9,3.94326941]
[1748877283704,0.81418993,2536.3,2536.0,3.94319749]
[1748877283868,0.47568572,2536.2,2536.0,3.94320512]
[1748877284217,0.7649,2536.3,2536.1,3.94298847]
[1748877284367,0.7649,2536.3,2536.2,3.94290671]
[1748877285017,11.54807448,2536.9,2536.6,3.94214358]
[1748877285018,0.8115,2536.8,2536.6,3.94214358]
[1748877285180,0.8115,2536.8,2536.7,3.94212953]
[1748877285362,0.8115,2536.8,2536.5,13.06137379]
[1748877285689,0.04928051,2536.7,2536.5,13.06137379]
[1748877285891,0.04928051,2536.7,2536.5,1.119]
[1748877286063,0.04928051,2536.7,2536.5,5.06141527]
[1748877286679,0.04928051,2536.7,2536.6,3.94228494]
[1748877287503,0.8115,2536.8,2536.7,3.94212953]
[1748877289503,0.8115,2536.8,2536.5,1.119]
[1748877289688,0.04927913,2536.7,2536.5,1.119]
[1748877289896,0.04927913,2536.7,2536.5,5.06142981]
[1748877290093,0.04927913,2536.7,2536.5,1.119]
[1748877290408,0.04927913,2536.7,2536.5,5.06143585]
[1748877291708,0.04927913,2536.7,2536.5,1.119]
[1748877291909,0.7886,2536.6,2536.3,5.06173575]
[1748877292086,0.04928483,2536.5,2536.4,3.9425958]
[1748877292269,0.7886,2536.6,2536.5,3.94244037]
[1748877292809,0.7886,2536.6,2536.4,3.94250538]
[1748877293006,0.7886,2536.6,2536.3,5.06166616]
[1748877293310,0.04928326,2536.5,2536.3,5.06166616]
[1748877293883,3.94262715,2536.4,2535.8,3.94352866]
[1748877294115,0.04928779,2536.3,2536.2,1.119]
[1748877294321,0.04928665,2536.5,2536.2,1.119]
[1748877294495,5.67791652,2536.5,2536.2,1.119]
[1748877295701,5.67779247,2536.5,2536.2,1.119]
[1748877296337,1.73534086,2536.5,2536.2,1.119]
[1748877296638,1.73534086,2536.5,2536.2,5.06184188]
[1748877297038,1.73534086,2536.5,2536.2,1.119]
[1748877297237,0.6466318,2536.4,2536.2,1.119]
[1748877297540,0.04928777,2536.3,2536.2,1.119]
[1748877297907,0.6466318,2536.4,2536.2,1.119]
[1748877298102,0.6466318,2536.4,2536.2,5.06183378]
[1748877298339,1.68605421,2536.5,2536.3,3.94275125]
[1748877298527,1.68605421,2536.5,2536.3,3.94273972]
[1748877298720,1.73534084,2536.5,2536.2,5.06181596]
[1748877299043,5.67780127,2536.5,2536.2,1.119]
[1748877299219,1.73534084,2536.5,2536.2,5.06188833]
[1748877299420,0.64662298,2536.4,2536.2,5.06188833]
[1748877299619,0.04928664,2536.3,2536.2,5.06188833]
[1748877299940,0.04928664,2536.4,2536.2,5.06188833]
[1748877300136,0.04928664,2536.4,2536.2,1.119]
[1748877300445,0.7886,2536.6,2536.5,3.94244037]
[1748877300941,0.00614,2536.9,2536.6,3.94213909]
[1748877301149,0.00614,2536.9,2536.8,3.94197414]
[1748877301330,0.05541443,2536.9,2536.1,0.7531]
[1748877301529,4.76946385,2536.8,2536.3,3.94268079]
[1748877301749,4.76946385,2536.8,2536.2,5.06190671]
[1748877301750,1.34558001,2536.7,2536.4,3.9425887]
[1748877301917,1.34558001,2536.7,2536.2,5.06182894]
[1748877301918,5.28779088,2536.7,2536.2,5.06182894]
[1748877302141,4.76973043,2536.6,2536.2,1.119]
[1748877302461,8.18737899,2536.5,2536.2,1.119]
[1748877302623,0.8274,2536.6,2536.2,5.06184139]
[1748877302961,1.0214924,2536.5,2536.2,1.119]
[1748877303142,4.9639756,2536.5,2536.2,1.119]
[1748877303458,0.04928896,2536.4,2536.2,1.119]
[1748877303633,1.0214924,2536.5,2536.2,5.06188635]
[1748877304259,3.94285101,2536.3,2535.6,0.8228]
[1748877304465,0.52205829,2536.2,2535.9,5.06226132]
[1748877304665,0.04929319,2536.2,2535.9,5.06226132]
[1748877305027,0.04929319,2536.2,2535.9,5.06229391]
[1748877305522,0.04929268,2536.3,2536.0,3.9432147]
[1748877306064,0.04929268,2536.3,2535.9,5.06230806]
[1748877306258,1.38914542,2536.3,2535.9,5.06230806]
[1748877306565,1.38914542,2536.3,2536.0,3.94321183]
[1748877307164,1.33985274,2536.3,2536.1,3.94304755]
[1748877307462,1.33985274,2536.3,2536.1,3.94292909]
[1748877307665,0.8213,2536.6,2536.5,3.94244037]
[1748877307969,0.8213,2536.6,2535.9,1.119]
[1748877308138,0.04928438,2536.5,2536.0,3.94321766]
[1748877308319,5.62728163,2536.5,2536.0,3.94314495]
[1748877308525,5.62728163,2536.5,2535.9,1.119]
[1748877308526,7.60041998,2536.3,2535.9,1.119]
[1748877308727,0.04929099,2536.2,2536.0,3.94320572]
[1748877308926,0.04929099,2536.2,2535.9,5.06228285]
[1748877309128,7.60041998,2536.3,2536.0,3.94308264]
[1748877309478,0.760042,2536.2,2536.1,3.94306218]
[1748877309626,0.760042,2536.2,2535.9,5.06226395]
[1748877309828,0.80933301,2536.2,2535.9,5.06226395]
[1748877310025,1.63633301,2536.2,2535.9,1.119]
[1748877310233,1.63633301,2536.2,2535.9,5.06237224]
[1748877310421,1.63633301,2536.2,2536.0,8.0]
[1748877311058,0.9236753,2536.1,2535.6,1.119]
[1748877311276,0.04929336,2536.0,2535.9,3.94330447]
[1748877311580,0.04929336,2536.0,2535.7,11.94360406]
[1748877311875,0.04929336,2536.0,2535.7,3.94361871]
[1748877312080,0.04929336,2536.0,2535.8,3.94352866]
[1748877312290,8.0926159,2536.4,2535.8,3.94352866]
[1748877312291,0.78934,2536.9,2536.1,0.8008]
[1748877312442,0.78934,2536.9,2536.6,3.94219826]
[1748877312774,0.04927786,2536.8,2536.7,1.119]
[1748877313067,7.64969784,2536.8,2536.5,8.0]
[1748877313252,0.84390378,2536.7,2536.3,13.061667]
[1748877313453,0.04928255,2536.6,2536.5,3.94244037]
[1748877313769,0.89318523,2536.7,2536.6,3.94228494]
[1748877314067,0.00614,2536.9,2536.8,3.94197414]
[1748877315293,0.00614,2536.9,2536.8,11.94197414]
[1748877316046,0.00614,2536.9,2536.8,8.0]
[1748877316278,0.81914,2536.9,2536.8,13.06597414]
[1748877320659,0.81914,2536.9,2536.8,13.06597414]
[1748877321208,0.81914,2536.9,2536.8,13.88627414]
[1748877321209,0.00614,2536.9,2536.8,13.88627414]
[1748877321500,0.00614,2536.9,2536.8,18.42844202]
[1748877322907,0.00614,2536.9,2536.8,18.42797423]
[1748877323050,0.00614,2536.9,2536.8,20.66498294]
[1748877323783,0.00614,2536.9,2536.8,15.37398294]
[1748877323987,0.00614,2536.9,2536.8,14.26097423]
[1748877324290,0.00614,2536.9,2536.8,18.06427414]
[1748877324590,0.00614,2536.9,2536.8,5.06597414]
[1748877324812,0.77654,2536.9,2535.9,0.7755]
[1748877325010,7.64969722,2536.8,2536.7,3.94212953]
[1748877325192,0.77654,2536.9,2536.7,3.94212953]
[1748877325193,0.77654,2536.9,2536.8,3.94197414]
[1748877325579,0.77654,2536.9,2536.8,11.94197414]
[1748877326081,0.77654,2536.9,2536.8,3.94197414]
[1748877326284,0.00614,2536.9,2536.8,3.94197414]
[1748877330309,0.00614,2536.9,2536.8,11.94197414]
[1748877330512,0.00614,2536.9,2536.8,13.64278451]
[1748877331523,0.00614,2536.9,2536.8,14.40668451]
[1748877331840,0.00614,2536.9,2536.8,14.78089258]
[1748877332043,0.00614,2536.9,2536.8,14.40668451]
[1748877332725,0.00614,2536.9,2536.8,19.71768451]
[1748877335132,0.00614,2536.9,2536.8,19.72268451]
[1748877335705,0.00614,2536.9,2536.8,20.09721477]
[1748877337353,0.00614,2536.9,2536.8,20.64721477]
[1748877338062,0.00614,2536.9,2536.8,20.27668451]
[1748877338359,0.00614,2536.9,2536.8,20.65104978]
[1748877338528,0.00614,2536.9,2536.8,14.78104978]
[1748877338732,0.00614,2536.9,2536.8,20.10104978]
[1748877339070,0.00614,2536.9,2536.8,14.20423941]
[1748877339363,0.00614,2536.9,2536.8,5.06597414]
[1748877339670,0.00614,2536.9,2536.8,13.06597414]
[1748877340132,0.79044,2536.9,2536.8,3.94197414]
[1748877340570,0.00614,2536.9,2536.8,11.94197414]
[1748877340909,0.00614,2536.9,2536.8,13.64278451]
[1748877341159,0.00614,2536.9,2536.8,11.94197414]
[1748877342341,0.00614,2536.9,2536.8,16.13997414]
[1748877342914,0.00614,2536.9,2536.8,16.51574223]
[1748877344596,0.00614,2536.9,2536.8,17.87964223]
[1748877345696,0.00614,2536.9,2536.8,17.87957909]
[1748877345834,0.00614,2536.9,2536.8,20.17414995]
[1748877348567,0.00614,2536.9,2536.8,19.61114995]
[1748877349095,0.00614,2536.9,2536.8,15.42614995]
[1748877349299,0.00614,2536.9,2536.8,4.31767909]
[1748877349447,0.00614,2536.9,2536.8,3.94197414]
[1748877349647,0.82844,2536.9,2536.8,5.82071511]
[1748877349951,0.82844,2536.9,2536.8,13.45231938]
[1748877350371,0.82844,2536.9,2536.8,5.45231938]
[1748877350959,0.82844,2536.9,2536.8,13.45231938]
[1748877352584,0.00614,2536.9,2536.8,13.82066427]
[1748877352746,0.00614,2536.9,2536.8,13.45231938]
[1748877353252,0.82034,2536.9,2536.8,12.31031938]
[1748877354086,0.82034,2536.9,2536.8,12.67861809]
[1748877354391,0.82034,2536.9,2536.8,12.31031938]
[1748877355382,0.82034,2536.9,2536.8,12.67858395]
[1748877355684,8.42075998,2536.9,2536.8,0.36834524]
[1748877355856,0.7851,2536.8,2536.4,3.94250366]
[1748877356058,0.0492849,2536.7,2536.6,3.94228494]
[1748877356577,0.7851,2536.8,2536.7,11.94212953]
[1748877356755,0.83437917,2536.8,2536.7,11.94212953]
[1748877356953,0.7851,2536.8,2536.7,11.94212953]
[1748877357689,0.00614,2536.9,2536.8,3.94197414]
[1748877358693,0.05541635,2536.9,2536.8,3.94197414]
[1748877358873,0.88041635,2536.9,2536.8,3.94197414]
[1748877359596,0.88041635,2536.9,2536.7,11.94206278]
[1748877360259,0.88041635,2536.9,2536.7,8.0]
[1748877360614,8.48083633,2536.9,2536.5,3.94235144]
[1748877360820,8.48083633,2536.9,2536.1,1.142]
[1748877360821,0.7802,2536.5,2536.1,1.142]
[1748877360963,0.04929067,2536.4,2536.3,3.94275125]
[1748877361309,0.82948792,2536.5,2536.4,3.9425958]
[1748877361910,0.82948792,2536.5,2536.4,11.9425958]
[1748877362107,1.67247871,2536.5,2536.4,8.0]
[1748877362606,0.8326,2536.3,2535.6,8.512]
[1748877362816,0.7816,2535.7,2535.4,1.142]
[1748877362959,0.7816,2535.7,2535.6,3.94383972]
[1748877363173,0.7816,2535.7,2535.6,11.94383972]
[1748877363479,0.7816,2535.7,2535.4,1.142]
[1748877363679,0.7816,2535.7,2535.3,3.94430202]
[1748877363885,7.60041998,2535.5,2535.4,8.0]
[1748877364086,0.838202,2535.6,2535.5,3.94399526]
[1748877364281,0.7816,2535.7,2535.6,3.94383972]
[1748877364492,0.7816,2535.7,2535.6,11.94383972]
[1748877364707,0.7816,2535.7,2535.6,8.0]
[1748877364911,1.619802,2535.7,2535.5,3.94392095]
[1748877365132,1.619802,2535.7,2535.4,1.143]
[1748877365133,7.64972211,2535.6,2535.4,1.143]
[1748877365631,0.8265,2535.5,2535.4,1.143]
[1748877366975,0.87580594,2535.5,2535.4,1.143]
[1748877367969,0.87580594,2535.5,2535.4,5.08715082]
[1748877368176,1.70051292,2535.5,2535.4,5.08715082]
[1748877368380,1.70051292,2535.5,2535.4,9.143]
[1748877369312,1.70051292,2535.5,2535.4,13.08715082]
[1748877369672,0.8265,2535.5,2535.4,9.143]
[1748877370107,0.8265,2535.5,2535.4,5.08715082]
[1748877370408,0.87940448,2535.6,2535.5,8.0]
[1748877371010,0.87940332,2535.6,2535.5,8.0]
[1748877371890,0.7521,2535.1,2534.6,3.94529232]
[1748877372086,7.64973929,2535.0,2534.4,1.143]
[1748877372327,1.25918393,2534.9,2534.7,8.0]
[1748877372505,1.25918393,2534.9,2534.6,3.94534393]
[1748877372506,0.04931791,2534.8,2534.6,3.9453626]
[1748877372901,0.04931791,2534.8,2534.4,5.08859859]
[1748877372902,0.04931791,2534.8,2534.7,3.94524006]
[1748877373731,0.04931791,2534.8,2534.6,11.94532618]
[1748877373917,0.04931791,2534.8,2534.6,3.94529005]
[1748877374241,0.94021009,2534.8,2534.5,9.143]
[1748877374534,0.8095,2534.6,2534.4,8.0]
[1748877374736,0.8095,2534.6,2534.5,3.94555139]
[1748877375039,0.89089218,2534.8,2534.7,11.94524006]
[1748877375040,1.66059218,2534.8,2534.7,11.94524006]
[1748877375198,1.66059218,2534.8,2534.7,8.0]
[1748877376804,5.65499792,2534.8,2534.7,8.0]
[1748877376998,1.7099135,2534.8,2534.7,8.0]
[1748877377262,0.8136,2534.7,2534.1,0.02]
[1748877377542,7.60041998,2534.4,2534.1,0.02]
[1748877377714,0.8136,2534.2,2534.1,0.02]
[1748877378142,0.86293539,2534.2,2534.1,3.96617418]
[1748877378342,0.8136,2534.2,2534.1,3.96617418]
[1748877378842,0.8136,2534.2,2534.1,0.02]
[1748877379403,5.40159594,2534.2,2534.1,0.02]
[1748877379707,10.46022019,2534.2,2534.1,0.02]
[1748877379939,11.25542019,2534.2,2534.1,0.02]
[1748877380520,19.25542019,2534.2,2534.1,0.02]
[1748877381809,15.06142019,2534.2,2534.1,0.02]
[1748877382010,19.62030627,2534.2,2534.1,0.02]
[1748877382349,2.56540173,2534.2,2534.1,0.02]
[1748877382544,1.18919594,2534.2,2534.1,0.02]
[1748877382770,8.78961592,2534.2,2534.1,0.02]
[1748877383546,1.18919594,2534.2,2534.1,0.02]
[1748877383955,8.78961592,2534.2,2534.1,0.02]
[1748877384252,12.73563438,2534.2,2534.1,0.02]
[1748877384455,14.9537953,2534.2,2534.1,0.02]